[Event "*** SCC Grand Prix: Titled Tuesday Blitz"]
[Site "Chess.com"]
[Date "2020.08.04"]
[Round "5"]
[White "Bulldog167"]
[Black "amintabatabaei"]
[Result "0-1"]
[WhiteElo "2726"]
[BlackElo "2968"]
[TimeControl "180+1"]
[EndTime "14:39:45 PDT"]
[Termination "amintabatabaei won on time"]

1. d4 {[%clk 0:03:00.9]} 1... Nf6 {[%clk 0:02:59.5]} 2. c4 {[%clk 0:03:01.3]}
2... g6 {[%clk 0:02:57.4]} 3. Nc3 {[%clk 0:03:01.3]} 3... d5 {[%clk 0:02:55.3]}
4. cxd5 {[%clk 0:03:00.9]} 4... Nxd5 {[%clk 0:02:56.2]} 5. e4 {[%clk 0:03:01.6]}
5... Nxc3 {[%clk 0:02:56.2]} 6. bxc3 {[%clk 0:03:02.5]} 6... Bg7 {[%clk
0:02:56.6]} 7. Bc4 {[%clk 0:03:03.1]} 7... c5 {[%clk 0:02:52.6]} 8. Ne2 {[%clk
0:03:03.2]} 8... O-O {[%clk 0:02:52.4]} 9. Be3 {[%clk 0:03:03]} 9... Nc6 {[%clk
0:02:51.5]} 10. h4 {[%clk 0:03:02.5]} 10... cxd4 {[%clk 0:02:50.7]} 11. cxd4
{[%clk 0:03:03.4]} 11... Qa5+ {[%clk 0:02:50.4]} 12. Kf1 {[%clk 0:03:03.8]}
12... Qa3 {[%clk 0:02:31.7]} 13. Bb3 {[%clk 0:02:35]} 13... Rd8 {[%clk
0:02:30.1]} 14. h5 {[%clk 0:02:21.8]} 14... a5 {[%clk 0:02:03.3]} 15. hxg6
{[%clk 0:02:21]} 15... hxg6 {[%clk 0:02:04.2]} 16. Qd3 {[%clk 0:01:55.7]} 16...
e6 {[%clk 0:02:02.2]} 17. Bg5 {[%clk 0:01:48.4]} 17... a4 {[%clk 0:01:59.8]} 18.
Bc4 {[%clk 0:00:42.8]} 18... Qxd3 {[%clk 0:01:58.4]} 19. Bxd3 {[%clk 0:00:43.7]}
19... Rd7 {[%clk 0:01:52.4]} 20. Bb5 {[%clk 0:00:40.3]} 20... Ra5 {[%clk
0:01:52.6]} 21. Bxc6 {[%clk 0:00:39.6]} 21... bxc6 {[%clk 0:01:52.7]} 22. Be3
{[%clk 0:00:39.5]} 22... Ba6 {[%clk 0:01:52.4]} 23. Rd1 {[%clk 0:00:29.6]} 23...
Rb5 {[%clk 0:01:46]} 24. Kg1 {[%clk 0:00:18.7]} 24... Rb2 {[%clk 0:01:43.5]} 25.
Nc3 {[%clk 0:00:18.5]} 25... a3 {[%clk 0:01:44.1]} 26. Na4 {[%clk 0:00:12.3]}
26... Rxa2 {[%clk 0:01:27.4]} 27. Nc5 {[%clk 0:00:12.5]} 27... Be2 {[%clk
0:01:22.9]} 28. Rb1 {[%clk 0:00:11.5]} 28... Rd8 {[%clk 0:01:22.9]} 29. Kh2
{[%clk 0:00:09.9]} 29... Bxd4 {[%clk 0:01:16.8]} 30. Bxd4 {[%clk 0:00:05.2]}
30... Rxd4 {[%clk 0:01:17.7]} 31. Rb8+ {[%clk 0:00:05.1]} 31... Kg7 {[%clk
0:01:17.8]} 32. Kg3 {[%clk 0:00:05.1]} 32... Rc2 {[%clk 0:01:13.3]} 33. Nb7
{[%clk 0:00:01.4]} 33... a2 {[%clk 0:01:09.1]} 34. Ra8 {[%clk 0:00:01.7]} 34...
Rb2 {[%clk 0:00:59.6]} 35. Nd8 {[%clk 0:00:01.4]} 35... Rb1 {[%clk 0:00:59.3]}
0-1

[Event "*** SCC Grand Prix: Titled Tuesday Blitz"]
[Site "Chess.com"]
[Date "2020.08.04"]
[Round "5"]
[White "Zarikovs1999"]
[Black "arminmusovic"]
[Result "1-0"]
[WhiteElo "2385"]
[BlackElo "2498"]
[TimeControl "180+1"]
[EndTime "14:39:50 PDT"]
[Termination "Zarikovs1999 won by checkmate"]

1. e4 {[%clk 0:02:58.6]} 1... c6 {[%clk 0:03:00.5]} 2. d4 {[%clk 0:02:58]} 2...
d5 {[%clk 0:03:01.4]} 3. Nc3 {[%clk 0:02:58.9]} 3... dxe4 {[%clk 0:03:01.1]} 4.
Nxe4 {[%clk 0:02:59.2]} 4... Nf6 {[%clk 0:03:02]} 5. Nxf6+ {[%clk 0:02:58]} 5...
exf6 {[%clk 0:03:02.9]} 6. c3 {[%clk 0:02:58.4]} 6... Bd6 {[%clk 0:03:03.1]} 7.
Bd3 {[%clk 0:02:58.8]} 7... O-O {[%clk 0:03:03.7]} 8. Ne2 {[%clk 0:02:59.2]}
8... Re8 {[%clk 0:03:04.6]} 9. Qc2 {[%clk 0:02:56]} 9... Kh8 {[%clk 0:03:04.8]}
10. O-O {[%clk 0:02:30.3]} 10... Nd7 {[%clk 0:03:03.4]} 11. Bf4 {[%clk
0:02:26.6]} 11... Nf8 {[%clk 0:02:56.5]} 12. Bxd6 {[%clk 0:02:26.7]} 12... Qxd6
{[%clk 0:02:57.4]} 13. Ng3 {[%clk 0:02:27.6]} 13... Be6 {[%clk 0:02:53.9]} 14.
f4 {[%clk 0:02:27.7]} 14... Rad8 {[%clk 0:02:48.9]} 15. f5 {[%clk 0:02:27.8]}
15... Bc8 {[%clk 0:02:48.8]} 16. Qf2 {[%clk 0:02:25.6]} 16... b6 {[%clk
0:02:44.8]} 17. Rae1 {[%clk 0:02:18.7]} 17... Bb7 {[%clk 0:02:39.9]} 18. Qf3
{[%clk 0:02:13.2]} 18... Qc7 {[%clk 0:02:28.4]} 19. Nh5 {[%clk 0:02:09.6]} 19...
Nd7 {[%clk 0:02:05.4]} 20. Qg4 {[%clk 0:01:57.5]} 20... Rg8 {[%clk 0:02:05.3]}
21. Re7 {[%clk 0:01:57.5]} 21... Rdf8 {[%clk 0:01:42.6]} 22. Rfe1 {[%clk
0:01:48.7]} 22... Bc8 {[%clk 0:01:35.4]} 23. Bc4 {[%clk 0:01:45.9]} 23... g6
{[%clk 0:01:21.7]} 24. Nxf6 {[%clk 0:01:42.2]} 24... Nxf6 {[%clk 0:01:17.9]} 25.
Qh4 {[%clk 0:01:03.1]} 25... Qd6 {[%clk 0:01:04.7]} 26. Bxf7 {[%clk 0:01:02.2]}
26... Bxf5 {[%clk 0:00:16.8]} 27. Bxg8 {[%clk 0:01:00]} 27... Rxg8 {[%clk
0:00:09.5]} 28. R1e6 {[%clk 0:00:58.1]} 28... Qxe7 {[%clk 0:00:02.5]} 29. Rxe7
{[%clk 0:00:57.6]} 29... Rf8 {[%clk 0:00:02.9]} 30. Qh6 {[%clk 0:00:54.7]} 30...
Rg8 {[%clk 0:00:02.4]} 31. Rf7 {[%clk 0:00:45.3]} 31... Ng4 {[%clk 0:00:02.5]}
32. Qf4 {[%clk 0:00:44.1]} 32... Nh6 {[%clk 0:00:01.8]} 33. Qe5+ {[%clk
0:00:43.4]} 33... Rg7 {[%clk 0:00:01.3]} 34. Qxg7# {[%clk 0:00:44.3]} 1-0

[Event "*** SCC Grand Prix: Titled Tuesday Blitz"]
[Site "Chess.com"]
[Date "2020.08.04"]
[Round "5"]
[White "Stormeman100100"]
[Black "1977Ivan"]
[Result "0-1"]
[WhiteElo "2445"]
[BlackElo "2686"]
[TimeControl "180+1"]
[EndTime "14:39:54 PDT"]
[Termination "1977Ivan won by checkmate"]

1. e4 {[%clk 0:02:59.5]} 1... c5 {[%clk 0:02:59.5]} 2. Nf3 {[%clk 0:02:58.1]}
2... e6 {[%clk 0:03:00]} 3. Nc3 {[%clk 0:02:55.7]} 3... Nc6 {[%clk 0:02:59.6]}
4. d4 {[%clk 0:02:55.3]} 4... cxd4 {[%clk 0:02:58.7]} 5. Nxd4 {[%clk 0:02:56.2]}
5... Qc7 {[%clk 0:02:59.2]} 6. Be3 {[%clk 0:02:54.7]} 6... a6 {[%clk 0:02:59.2]}
7. Bd3 {[%clk 0:02:51.3]} 7... Nf6 {[%clk 0:02:58.1]} 8. O-O {[%clk 0:02:49.8]}
8... h5 {[%clk 0:02:58.6]} 9. Nf3 {[%clk 0:02:42]} 9... b5 {[%clk 0:02:56]} 10.
Re1 {[%clk 0:02:36.7]} 10... Bb7 {[%clk 0:02:46.9]} 11. Nd5 {[%clk 0:02:36]}
11... exd5 {[%clk 0:02:35.1]} 12. exd5 {[%clk 0:02:30.3]} 12... Ne7 {[%clk
0:02:34.8]} 13. c4 {[%clk 0:01:42.3]} 13... bxc4 {[%clk 0:02:32.8]} 14. Rc1
{[%clk 0:01:38.4]} 14... Bxd5 {[%clk 0:02:30.7]} 15. Bg5 {[%clk 0:01:24.3]}
15... Be6 {[%clk 0:02:17]} 16. Qa4 {[%clk 0:01:18.3]} 16... Nc6 {[%clk
0:02:08.4]} 17. Bxc4 {[%clk 0:01:16.6]} 17... Be7 {[%clk 0:02:08.9]} 18. Ne5
{[%clk 0:01:01.8]} 18... O-O {[%clk 0:02:02]} 19. Bxe6 {[%clk 0:01:00.2]} 19...
fxe6 {[%clk 0:01:56.2]} 20. Ng6 {[%clk 0:00:40.1]} 20... Rf7 {[%clk 0:01:51.6]}
21. Qh4 {[%clk 0:00:26.7]} 21... Qa5 {[%clk 0:01:46.8]} 22. a3 {[%clk 0:00:16]}
22... Qf5 {[%clk 0:01:37.3]} 23. Nxe7+ {[%clk 0:00:13.1]} 23... Nxe7 {[%clk
0:01:35.7]} 24. Bd2 {[%clk 0:00:11]} 24... Ng6 {[%clk 0:01:35.1]} 25. Qg3 {[%clk
0:00:10.6]} 25... h4 {[%clk 0:01:33.2]} 26. Qe3 {[%clk 0:00:09.5]} 26... Nd5
{[%clk 0:01:31]} 27. Qd4 {[%clk 0:00:08.7]} 27... Raf8 {[%clk 0:01:29.7]} 28. f3
{[%clk 0:00:07.9]} 28... h3 {[%clk 0:01:29.6]} 29. Re2 {[%clk 0:00:05.5]} 29...
Ngf4 {[%clk 0:01:27.9]} 30. Rf2 {[%clk 0:00:04]} 30... hxg2 {[%clk 0:01:27.2]}
31. Rc5 {[%clk 0:00:02.7]} 31... Nh3+ {[%clk 0:01:26]} 32. Kxg2 {[%clk
0:00:03.6]} 32... Nxf2 {[%clk 0:01:25.3]} 33. Qxf2 {[%clk 0:00:04.5]} 33... Qg6+
{[%clk 0:01:21.9]} 34. Qg3 {[%clk 0:00:05.4]} 34... Qxg3+ {[%clk 0:01:21.5]} 35.
hxg3 {[%clk 0:00:06.3]} 35... Rxf3 {[%clk 0:01:21.9]} 36. Be1 {[%clk 0:00:05.4]}
36... Ne3+ {[%clk 0:01:21.2]} 37. Kh3 {[%clk 0:00:03.8]} 37... Rf1 {[%clk
0:01:21.5]} 38. Kh4 {[%clk 0:00:02]} 38... Rxe1 {[%clk 0:01:20.2]} 39. Kg5
{[%clk 0:00:01.6]} 39... Rf5+ {[%clk 0:01:19]} 40. Rxf5 {[%clk 0:00:02.3]} 40...
Nxf5 {[%clk 0:01:19.5]} 41. Kg6 {[%clk 0:00:03.2]} 41... Ne7+ {[%clk 0:01:19.1]}
42. Kg5 {[%clk 0:00:03.1]} 42... Re5+ {[%clk 0:01:19.4]} 43. Kh4 {[%clk
0:00:04]} 43... Kf7 {[%clk 0:01:15.9]} 44. g4 {[%clk 0:00:04.9]} 44... Kf6
{[%clk 0:01:15.7]} 45. g5+ {[%clk 0:00:05]} 45... Kf5 {[%clk 0:01:15.7]} 46. b4
{[%clk 0:00:05.9]} 46... Ng6+ {[%clk 0:01:15.4]} 47. Kh5 {[%clk 0:00:05.7]}
47... Re4 {[%clk 0:01:15.5]} 48. a4 {[%clk 0:00:06.5]} 48... Rh4# {[%clk
0:01:15.6]} 0-1

[Event "*** SCC Grand Prix: Titled Tuesday Blitz"]
[Site "Chess.com"]
[Date "2020.08.04"]
[Round "5"]
[White "dosto07"]
[Black "coocloo"]
[Result "1-0"]
[WhiteElo "2285"]
[BlackElo "1987"]
[TimeControl "180+1"]
[EndTime "14:39:56 PDT"]
[Termination "dosto07 won by resignation"]

1. e4 {[%clk 0:03:00.9]} 1... e5 {[%clk 0:02:59.8]} 2. Nf3 {[%clk 0:02:59.6]}
2... Nc6 {[%clk 0:02:59.8]} 3. Bb5 {[%clk 0:02:59]} 3... Nf6 {[%clk 0:02:59.3]}
4. O-O {[%clk 0:02:57.7]} 4... Bc5 {[%clk 0:02:58.2]} 5. c3 {[%clk 0:02:56.2]}
5... O-O {[%clk 0:02:40.9]} 6. d4 {[%clk 0:02:54.9]} 6... Bb6 {[%clk 0:02:40.9]}
7. Qd3 {[%clk 0:02:50.7]} 7... d6 {[%clk 0:02:17.1]} 8. Bg5 {[%clk 0:02:49.5]}
8... h6 {[%clk 0:02:14.2]} 9. Bh4 {[%clk 0:02:48.4]} 9... g5 {[%clk 0:02:09.2]}
10. Nxg5 {[%clk 0:02:41]} 10... hxg5 {[%clk 0:01:53]} 11. Bxg5 {[%clk
0:02:41.9]} 11... exd4 {[%clk 0:01:52.8]} 12. Bh4 {[%clk 0:02:42.8]} 12... Ne5
{[%clk 0:01:49]} 13. Qg3+ {[%clk 0:02:37.8]} 13... Ng6 {[%clk 0:01:48.6]} 14.
Nd2 {[%clk 0:02:32.6]} 14... dxc3 {[%clk 0:01:47.1]} 15. bxc3 {[%clk 0:02:31.4]}
15... c6 {[%clk 0:01:43.9]} 16. Bd3 {[%clk 0:02:30.8]} 16... Qe7 {[%clk
0:01:17.1]} 17. e5 {[%clk 0:02:26.9]} 17... Qxe5 {[%clk 0:01:16.8]} 18. Qxe5
{[%clk 0:02:12.2]} 18... dxe5 {[%clk 0:01:17.7]} 19. Bxf6 {[%clk 0:02:11.3]}
19... Re8 {[%clk 0:01:13.3]} 20. Nc4 {[%clk 0:02:05.8]} 20... e4 {[%clk
0:01:11.7]} 21. Bc2 {[%clk 0:02:00.9]} 21... Re6 {[%clk 0:01:00]} 22. Bd4 {[%clk
0:01:56]} 22... Bxd4 {[%clk 0:00:57.3]} 23. cxd4 {[%clk 0:01:55.5]} 23... b5
{[%clk 0:00:57.2]} 24. Ne3 {[%clk 0:01:54.6]} 24... Bb7 {[%clk 0:00:56.2]} 25.
Bb3 {[%clk 0:01:52.1]} 25... Rd6 {[%clk 0:00:55]} 26. Nf5 {[%clk 0:01:50.7]}
26... Rd7 {[%clk 0:00:54.2]} 27. a4 {[%clk 0:01:44.8]} 27... bxa4 {[%clk
0:00:50.1]} 28. Rxa4 {[%clk 0:01:42.6]} 28... Nf4 {[%clk 0:00:44.7]} 29. Re1
{[%clk 0:01:39]} 29... c5 {[%clk 0:00:37.3]} 30. dxc5 {[%clk 0:01:35.3]} 30...
Nd3 {[%clk 0:00:34.8]} 31. Rd1 {[%clk 0:01:24.3]} 31... Nxc5 {[%clk 0:00:33]}
32. Rxd7 {[%clk 0:01:23.7]} 32... Nxd7 {[%clk 0:00:33.9]} 33. Nd6 {[%clk
0:01:21.8]} 33... Bc6 {[%clk 0:00:29.2]} 34. Bxf7+ {[%clk 0:01:15.9]} 34... Kf8
{[%clk 0:00:23.8]} 35. Rc4 {[%clk 0:01:16.8]} 35... Rb8 {[%clk 0:00:17.3]} 36.
h4 {[%clk 0:01:15.4]} 36... Ba8 {[%clk 0:00:16.9]} 37. Be6 {[%clk 0:01:09.2]}
37... Ke7 {[%clk 0:00:16.5]} 38. Bxd7 {[%clk 0:01:08.5]} 38... Kxd7 {[%clk
0:00:17.4]} 39. Nxe4 {[%clk 0:01:07.9]} 39... Rb1+ {[%clk 0:00:17.1]} 40. Kh2
{[%clk 0:01:06.8]} 40... Re1 {[%clk 0:00:18]} 41. Ng3 {[%clk 0:01:03]} 41... Ra1
{[%clk 0:00:17.4]} 42. h5 {[%clk 0:00:58.6]} 42... Ra2 {[%clk 0:00:17.6]} 43.
Rf4 {[%clk 0:00:55.3]} 43... Ra1 {[%clk 0:00:17.7]} 44. h6 {[%clk 0:00:53.5]}
44... Ra6 {[%clk 0:00:17.1]} 45. Rh4 {[%clk 0:00:51.6]} 45... Bd5 {[%clk
0:00:15.6]} 46. h7 {[%clk 0:00:51.1]} 1-0

[Event "*** SCC Grand Prix: Titled Tuesday Blitz"]
[Site "Chess.com"]
[Date "2020.08.04"]
[Round "5"]
[White "serena-maria"]
[Black "kleopl"]
[Result "1/2-1/2"]
[WhiteElo "2254"]
[BlackElo "2451"]
[TimeControl "180+1"]
[EndTime "14:40:05 PDT"]
[Termination "Game drawn - insufficient material"]

1. Nf3 {[%clk 0:03:00.4]} 1... Nf6 {[%clk 0:02:58.6]} 2. g3 {[%clk 0:03:00.9]}
2... g6 {[%clk 0:02:58.1]} 3. Bg2 {[%clk 0:03:01.5]} 3... Bg7 {[%clk 0:02:58.5]}
4. O-O {[%clk 0:03:02.2]} 4... O-O {[%clk 0:02:58.9]} 5. c4 {[%clk 0:03:02.8]}
5... c6 {[%clk 0:02:58.7]} 6. Nc3 {[%clk 0:03:02.6]} 6... d5 {[%clk 0:02:58.6]}
7. cxd5 {[%clk 0:03:03.5]} 7... cxd5 {[%clk 0:02:58.5]} 8. d4 {[%clk 0:03:04.4]}
8... Ne4 {[%clk 0:02:58.6]} 9. Ne5 {[%clk 0:03:05.3]} 9... Nxc3 {[%clk
0:02:57.5]} 10. bxc3 {[%clk 0:03:06.2]} 10... Nd7 {[%clk 0:02:48.1]} 11. Nxd7
{[%clk 0:03:05.7]} 11... Qxd7 {[%clk 0:02:48]} 12. Qb3 {[%clk 0:03:02]} 12... e6
{[%clk 0:02:46.8]} 13. e4 {[%clk 0:03:00.9]} 13... dxe4 {[%clk 0:02:24.3]} 14.
Bxe4 {[%clk 0:03:01.8]} 14... e5 {[%clk 0:02:19.8]} 15. Ba3 {[%clk 0:02:05.2]}
15... Rd8 {[%clk 0:02:12.3]} 16. d5 {[%clk 0:02:02.7]} 16... b6 {[%clk
0:02:06.1]} 17. d6 {[%clk 0:01:52.5]} 17... Bb7 {[%clk 0:02:03]} 18. Bxb7 {[%clk
0:01:52.8]} 18... Qxb7 {[%clk 0:02:03.9]} 19. Rad1 {[%clk 0:01:48.5]} 19... Rd7
{[%clk 0:02:03.1]} 20. Qd5 {[%clk 0:01:44]} 20... Qxd5 {[%clk 0:01:57.7]} 21.
Rxd5 {[%clk 0:01:44.9]} 21... Rc8 {[%clk 0:01:57.9]} 22. Rc1 {[%clk 0:01:30.5]}
22... Rc6 {[%clk 0:01:55]} 23. c4 {[%clk 0:01:27.4]} 23... f6 {[%clk 0:01:52.2]}
24. c5 {[%clk 0:01:25.9]} 24... Kf7 {[%clk 0:01:36.4]} 25. cxb6 {[%clk
0:01:05.8]} 25... Rxc1+ {[%clk 0:01:37.3]} 26. Bxc1 {[%clk 0:01:05.9]} 26...
axb6 {[%clk 0:01:28.3]} 27. Be3 {[%clk 0:01:05.6]} 27... Ke6 {[%clk 0:01:25.3]}
28. Rb5 {[%clk 0:01:05]} 28... Rb7 {[%clk 0:01:15.7]} 29. Rxb6 {[%clk
0:00:59.6]} 29... Rxb6 {[%clk 0:01:14.8]} 30. Bxb6 {[%clk 0:01:00.5]} 30... Kxd6
{[%clk 0:01:15.3]} 31. a4 {[%clk 0:00:49]} 31... Kc6 {[%clk 0:01:14.1]} 32. a5
{[%clk 0:00:49.4]} 32... Kb5 {[%clk 0:01:10.4]} 33. Kg2 {[%clk 0:00:46.1]} 33...
f5 {[%clk 0:01:08.7]} 34. Kf3 {[%clk 0:00:43.5]} 34... e4+ {[%clk 0:01:07.9]}
35. Ke3 {[%clk 0:00:34.8]} 35... Bc3 {[%clk 0:01:06.7]} 36. f3 {[%clk
0:00:31.1]} 36... exf3 {[%clk 0:01:03.7]} 37. Kxf3 {[%clk 0:00:32]} 37... Bxa5
{[%clk 0:01:03.6]} 38. Bxa5 {[%clk 0:00:24]} 38... Kxa5 {[%clk 0:01:04.5]} 39.
Kf4 {[%clk 0:00:24.6]} 39... Kb5 {[%clk 0:01:04.7]} 40. Kg5 {[%clk 0:00:24.8]}
40... Kc4 {[%clk 0:01:01.8]} 41. Kh6 {[%clk 0:00:22.9]} 41... Kd5 {[%clk
0:01:01.6]} 42. h4 {[%clk 0:00:17.6]} 42... Ke4 {[%clk 0:00:59.5]} 43. Kxh7
{[%clk 0:00:17.8]} 43... Kf3 {[%clk 0:00:57]} 44. Kxg6 {[%clk 0:00:17.2]} 44...
Kxg3 {[%clk 0:00:57.4]} 45. h5 {[%clk 0:00:15.6]} 45... f4 {[%clk 0:00:57.4]}
46. h6 {[%clk 0:00:16.1]} 46... f3 {[%clk 0:00:58]} 47. h7 {[%clk 0:00:16.7]}
47... f2 {[%clk 0:00:58.9]} 48. h8=Q {[%clk 0:00:16.9]} 48... f1=Q {[%clk
0:00:59.1]} 49. Qe5+ {[%clk 0:00:15.9]} 49... Qf4 {[%clk 0:00:57.8]} 50. Qxf4+
{[%clk 0:00:14.6]} 50... Kxf4 {[%clk 0:00:58.7]} 1/2-1/2

[Event "*** SCC Grand Prix: Titled Tuesday Blitz"]
[Site "Chess.com"]
[Date "2020.08.04"]
[Round "5"]
[White "KatarinaOstojic"]
[Black "Bacyanide"]
[Result "1-0"]
[WhiteElo "2213"]
[BlackElo "2414"]
[TimeControl "180+1"]
[EndTime "14:40:05 PDT"]
[Termination "KatarinaOstojic won on time"]

1. e4 {[%clk 0:03:00.9]} 1... e5 {[%clk 0:02:58.3]} 2. Nf3 {[%clk 0:03:00.8]}
2... Nc6 {[%clk 0:02:58.1]} 3. Bb5 {[%clk 0:03:01.4]} 3... a6 {[%clk 0:02:57.5]}
4. Ba4 {[%clk 0:03:01.6]} 4... Nf6 {[%clk 0:02:57.4]} 5. d3 {[%clk 0:03:01.6]}
5... b5 {[%clk 0:02:57]} 6. Bb3 {[%clk 0:03:01.4]} 6... Bc5 {[%clk 0:02:57.6]}
7. a3 {[%clk 0:02:59.8]} 7... O-O {[%clk 0:02:57]} 8. Nc3 {[%clk 0:03:00.2]}
8... d6 {[%clk 0:02:50.2]} 9. h3 {[%clk 0:02:59.8]} 9... h6 {[%clk 0:02:50.3]}
10. O-O {[%clk 0:02:59.4]} 10... Be6 {[%clk 0:02:50.2]} 11. Nd5 {[%clk
0:02:59.4]} 11... Bxd5 {[%clk 0:02:49.9]} 12. exd5 {[%clk 0:03:00.3]} 12... Ne7
{[%clk 0:02:49]} 13. c4 {[%clk 0:02:52.7]} 13... bxc4 {[%clk 0:02:47.8]} 14.
dxc4 {[%clk 0:02:53.6]} 14... Nf5 {[%clk 0:02:42.6]} 15. Bc2 {[%clk 0:02:47.8]}
15... e4 {[%clk 0:02:42.7]} 16. Nd2 {[%clk 0:02:22.5]} 16... Re8 {[%clk
0:02:40.2]} 17. Nb3 {[%clk 0:01:59.9]} 17... Ba7 {[%clk 0:02:31.7]} 18. Bf4
{[%clk 0:01:52.6]} 18... g5 {[%clk 0:02:24.8]} 19. Bh2 {[%clk 0:01:48.1]} 19...
Qd7 {[%clk 0:02:23.3]} 20. Na5 {[%clk 0:01:33.6]} 20... e3 {[%clk 0:02:16.8]}
21. Ba4 {[%clk 0:01:29]} 21... exf2+ {[%clk 0:02:17.7]} 22. Kh1 {[%clk
0:01:26.5]} 22... Qe7 {[%clk 0:02:08.2]} 23. Bxe8 {[%clk 0:01:25.6]} 23... Rxe8
{[%clk 0:02:08.5]} 24. Nc6 {[%clk 0:01:24.5]} 24... Qe3 {[%clk 0:02:04.3]} 25.
Nxa7 {[%clk 0:01:23.9]} 25... Qxa7 {[%clk 0:02:05.2]} 26. Qf3 {[%clk 0:01:22.8]}
26... Ne3 {[%clk 0:01:53.2]} 27. Qxf2 {[%clk 0:01:19.8]} 27... Rf8 {[%clk
0:01:16.5]} 28. Rae1 {[%clk 0:01:11.5]} 28... Nd7 {[%clk 0:01:06.4]} 29. Qxe3
{[%clk 0:01:09.9]} 29... Qb7 {[%clk 0:01:04.5]} 30. b4 {[%clk 0:01:08.7]} 30...
Nb6 {[%clk 0:01:03.6]} 31. Qd4 {[%clk 0:00:56.3]} 31... Qc8 {[%clk 0:00:56.9]}
32. Rf6 {[%clk 0:00:54.6]} 32... Qd7 {[%clk 0:00:50.7]} 33. Rxh6 {[%clk
0:00:53.1]} 33... f6 {[%clk 0:00:44.9]} 34. Rxf6 {[%clk 0:00:47.8]} 34... Rxf6
{[%clk 0:00:45.8]} 35. Qxf6 {[%clk 0:00:47.9]} 35... Nxc4 {[%clk 0:00:46.4]} 36.
Qxg5+ {[%clk 0:00:46.1]} 36... Kh8 {[%clk 0:00:46.1]} 37. Re7 {[%clk 0:00:40.1]}
1-0

[Event "*** SCC Grand Prix: Titled Tuesday Blitz"]
[Site "Chess.com"]
[Date "2020.08.04"]
[Round "5"]
[White "XiaoKangZhong"]
[Black "spacegirl987"]
[Result "1-0"]
[WhiteElo "2404"]
[BlackElo "1944"]
[TimeControl "180+1"]
[EndTime "14:40:06 PDT"]
[Termination "XiaoKangZhong won by checkmate"]

1. e4 {[%clk 0:03:00.9]} 1... c5 {[%clk 0:03:00]} 2. c3 {[%clk 0:02:58.9]} 2...
d5 {[%clk 0:02:59.6]} 3. exd5 {[%clk 0:02:59.8]} 3... Qxd5 {[%clk 0:02:59.4]} 4.
d4 {[%clk 0:03:00.7]} 4... Nc6 {[%clk 0:02:58.9]} 5. Nf3 {[%clk 0:03:00.7]} 5...
Bg4 {[%clk 0:02:58.8]} 6. Be2 {[%clk 0:03:00.8]} 6... e6 {[%clk 0:02:59.1]} 7.
Be3 {[%clk 0:03:00.6]} 7... Nf6 {[%clk 0:02:54.5]} 8. h3 {[%clk 0:03:00.9]} 8...
Bh5 {[%clk 0:02:53.9]} 9. Na3 {[%clk 0:02:56.3]} 9... Be7 {[%clk 0:02:49.8]} 10.
Nb5 {[%clk 0:02:55.5]} 10... Qd7 {[%clk 0:02:49]} 11. dxc5 {[%clk 0:02:54.5]}
11... Qxd1+ {[%clk 0:02:41.1]} 12. Rxd1 {[%clk 0:02:53.3]} 12... O-O {[%clk
0:02:38.2]} 13. Nd6 {[%clk 0:02:42.8]} 13... Rab8 {[%clk 0:01:59.2]} 14. O-O
{[%clk 0:02:33.3]} 14... Nd5 {[%clk 0:01:42.7]} 15. Bd4 {[%clk 0:02:21.1]} 15...
b6 {[%clk 0:01:32.4]} 16. Rd2 {[%clk 0:01:38.9]} 16... bxc5 {[%clk 0:01:05.2]}
17. Bxc5 {[%clk 0:01:35.9]} 17... Rfd8 {[%clk 0:01:02.4]} 18. Ne4 {[%clk
0:01:32.6]} 18... Bxc5 {[%clk 0:00:51.5]} 19. Nxc5 {[%clk 0:01:33.5]} 19... Nf4
{[%clk 0:00:45.6]} 20. Rxd8+ {[%clk 0:01:30.3]} 20... Rxd8 {[%clk 0:00:44.7]}
21. Bb5 {[%clk 0:01:24.3]} 21... Bxf3 {[%clk 0:00:37.7]} 22. gxf3 {[%clk
0:01:23.7]} 22... Ne5 {[%clk 0:00:34.7]} 23. Ba4 {[%clk 0:01:17.8]} 23... Nxf3+
{[%clk 0:00:20.8]} 24. Kh1 {[%clk 0:01:17.3]} 24... Rd2 {[%clk 0:00:20.6]} 25.
Rd1 {[%clk 0:01:16.4]} 25... Rxd1+ {[%clk 0:00:17.7]} 26. Bxd1 {[%clk
0:01:17.3]} 26... Ne5 {[%clk 0:00:17.8]} 27. Kh2 {[%clk 0:01:03.3]} 27... Nfd3
{[%clk 0:00:17.9]} 28. Nxd3 {[%clk 0:01:02.8]} 28... Nxd3 {[%clk 0:00:18.2]} 29.
b4 {[%clk 0:01:03.2]} 29... Nxf2 {[%clk 0:00:17.4]} 30. Bc2 {[%clk 0:01:03.7]}
30... f5 {[%clk 0:00:15.8]} 31. Kg3 {[%clk 0:00:59.1]} 31... Ne4+ {[%clk
0:00:16.1]} 32. Bxe4 {[%clk 0:00:59.3]} 32... fxe4 {[%clk 0:00:17]} 33. Kf4
{[%clk 0:01:00]} 33... Kf7 {[%clk 0:00:17.5]} 34. Kxe4 {[%clk 0:01:00.3]} 34...
Ke7 {[%clk 0:00:18.4]} 35. c4 {[%clk 0:00:59.9]} 35... Kd6 {[%clk 0:00:18.7]}
36. a4 {[%clk 0:00:59.8]} 36... g5 {[%clk 0:00:17.9]} 37. c5+ {[%clk 0:00:58.2]}
37... Kc6 {[%clk 0:00:17.5]} 38. Kd4 {[%clk 0:00:56]} 38... h5 {[%clk
0:00:18.4]} 39. b5+ {[%clk 0:00:56.3]} 39... Kc7 {[%clk 0:00:17]} 40. Ke5 {[%clk
0:00:56.4]} 40... Kb7 {[%clk 0:00:12.7]} 41. a5 {[%clk 0:00:54.2]} 41... Kc7
{[%clk 0:00:12.2]} 42. a6 {[%clk 0:00:50.5]} 42... Kb8 {[%clk 0:00:08]} 43. b6
{[%clk 0:00:50.9]} 43... axb6 {[%clk 0:00:08.2]} 44. cxb6 {[%clk 0:00:51.8]}
44... Ka8 {[%clk 0:00:08.4]} 45. Kd6 {[%clk 0:00:49.9]} 45... g4 {[%clk
0:00:08.6]} 46. Kc7 {[%clk 0:00:49.5]} 46... g3 {[%clk 0:00:08.4]} 47. b7+
{[%clk 0:00:50.4]} 47... Ka7 {[%clk 0:00:08.8]} 48. b8=Q+ {[%clk 0:00:51.3]}
48... Kxa6 {[%clk 0:00:09.7]} 49. Qb6# {[%clk 0:00:51.9]} 1-0